bitfinex-derivatives/quotes_BTCF0:USTF0_20241013
["timestamp","ask_amount","ask_price","bid_price","bid_amount"]
[1728830585794,0.0024,62572.0,62571.0,0.14748822]
[1728830586096,0.082327,62572.0,62571.0,0.14748822]
[1728830586396,0.082327,62572.0,62571.0,0.19016519]
[1728830586794,0.082327,62572.0,62571.0,0.11023619]
[1728830587897,0.082327,62572.0,62571.0,0.0037]
[1728830588484,0.082327,62572.0,62568.0,0.0004]
[1728830588485,0.079933,62568.0,62567.0,0.06386584]
[1728830588686,0.11,62566.0,62557.0,0.08022721]
[1728830588894,0.551145,62558.0,62557.0,0.0004]
[1728830589992,0.551145,62558.0,62557.0,0.0014]
[1728830590190,0.58033055,62558.0,62557.0,0.0014]
[1728830590885,0.58133055,62558.0,62557.0,0.0014]
[1728830591698,0.58233055,62558.0,62557.0,0.0004]
[1728830597002,0.553145,62558.0,62557.0,0.0004]
[1728830598498,0.58161897,62558.0,62557.0,0.0004]
[1728830599002,0.443145,62558.0,62557.0,0.0004]
[1728830599196,0.443145,62558.0,62557.0,0.00540003]
[1728830599902,0.443145,62558.0,62557.0,0.080347]
[1728830601294,0.443145,62558.0,62557.0,0.18672464]
[1728830602702,0.443145,62558.0,62557.0,0.18671951]
[1728830603005,0.38714465,62558.0,62557.0,0.18671951]
[1728830603601,0.082345,62558.0,62557.0,0.18671951]
[1728830604398,0.082345,62558.0,62557.0,0.10677251]
[1728830604597,0.192345,62558.0,62557.0,0.10677251]
[1728830605406,0.302345,62558.0,62557.0,0.0004]
[1728830605596,0.192345,62558.0,62557.0,0.0004]
[1728830607101,0.191345,62558.0,62557.0,0.0004]
[1728830607407,0.192345,62558.0,62557.0,0.0004]
[1728830619410,0.553145,62558.0,62557.0,0.0004]
[1728830622009,0.553145,62558.0,62549.0,0.0004]
[1728830622010,0.079956,62550.0,62549.0,0.0004]
[1728830622204,0.661156,62550.0,62549.0,0.0004]
[1728830623315,0.661156,62550.0,62548.0,0.0004]
[1728830623316,0.079957,62549.0,62548.0,0.0004]
[1728830623612,0.079957,62549.0,62545.0,0.08015095]
[1728830623613,0.079961,62546.0,62545.0,0.0004]
[1728830623817,0.190361,62546.0,62545.0,0.0004]
[1728830624012,0.1104,62546.0,62543.0,0.07985761]
[1728830624214,0.11,62544.0,62542.0,0.07985761]
[1728830624412,0.1104,62543.0,62542.0,0.07985761]
[1728830624606,0.1104,62543.0,62542.0,0.18572204]
[1728830624607,0.300365,62543.0,62542.0,0.18572204]
[1728830624807,0.300365,62543.0,62542.0,0.07595761]
[1728830625214,0.1104,62543.0,62537.0,0.0317]
[1728830625413,0.07997,62539.0,62538.0,0.10578427]
[1728830626715,0.18997,62539.0,62538.0,0.10578427]
[1728830627108,0.19097,62539.0,62538.0,0.10578427]
[1728830627420,0.19197,62539.0,62538.0,0.10578427]
[1728830631221,0.19197,62539.0,62538.0,0.20134968]
[1728830632418,0.19197,62539.0,62538.0,0.20635119]
[1728830633324,0.19197,62539.0,62538.0,0.20134968]
[1728830633520,0.19197,62539.0,62538.0,0.20635118]
[1728830633818,0.19197,62539.0,62538.0,0.2065562]
[1728830634224,0.19197,62539.0,62538.0,0.11078569]
[1728830634916,0.19197,62539.0,62538.0,0.20657099]
[1728830635119,0.19197,62539.0,62538.0,0.11078569]
[1728830640731,0.19197,62539.0,62538.0,0.11078582]
[1728830642029,0.19197,62539.0,62538.0,0.1099441]
[1728830642231,0.19197,62539.0,62538.0,0.10494255]
[1728830648638,0.19197,62539.0,62538.0,0.2333906]
[1728830649545,0.30197,62539.0,62538.0,0.23340991]
[1728830649840,0.079971,62538.0,62537.0,0.08210186]
[1728830650038,0.080371,62538.0,62537.0,0.08210186]
[1728830650242,0.080371,62538.0,62535.0,0.0004]
[1728830650243,0.079973,62536.0,62535.0,0.0004]
[1728830650439,0.190373,62536.0,62535.0,0.12811956]
[1728830650930,0.190373,62536.0,62535.0,0.0004]
[1728830651130,0.190373,62536.0,62535.0,0.12827753]
[1728830651335,0.190373,62536.0,62535.0,0.0004]
[1728830651637,0.190373,62536.0,62535.0,0.12828053]
[1728830651832,0.191373,62536.0,62535.0,0.12828053]
[1728830652337,0.191373,62536.0,62535.0,0.0004]
[1728830653031,0.192373,62536.0,62535.0,0.0004]
[1728830654038,0.22172921,62536.0,62535.0,0.0004]
[1728830654441,0.11172921,62536.0,62535.0,0.0004]
[1728830654641,0.22172921,62536.0,62535.0,0.0004]
[1728830655232,0.22172921,62536.0,62535.0,0.08033932]
[1728830656237,0.11172921,62536.0,62535.0,0.08033932]
[1728830656454,0.22172921,62536.0,62535.0,0.08033932]
[1728830656861,0.22172921,62536.0,62535.0,0.0004]
[1728830659355,0.22172921,62536.0,62535.0,0.08033932]
[1728830660765,0.22172921,62536.0,62535.0,0.0004]
[1728830661949,0.11172921,62536.0,62535.0,0.0004]
[1728830662960,0.0024,62536.0,62535.0,0.080375]
[1728830663150,0.11,62537.0,62535.0,0.13295655]
[1728830663461,0.11,62537.0,62536.0,0.20752768]
[1728830663664,0.11,62537.0,62536.0,0.20748761]
[1728830664054,0.11,62537.0,62536.0,0.21248937]
[1728830664365,0.111,62537.0,62536.0,0.21248937]
[1728830664561,0.190972,62537.0,62536.0,0.21248937]
[1728830664858,0.189972,62537.0,62536.0,0.3194296]
[1728830665056,0.190972,62537.0,62536.0,0.3194296]
[1728830665461,0.191972,62537.0,62536.0,0.31442784]
[1728830665763,0.191972,62537.0,62536.0,0.31942955]
[1728830666160,0.191972,62537.0,62536.0,0.32042955]
[1728830666551,0.13595331,62537.0,62536.0,0.32042955]
[1728830667669,0.13595331,62537.0,62536.0,0.31984048]
[1728830668054,3.0208,62539.0,62536.0,0.31984048]
[1728830668055,3.0208,62539.0,62538.0,0.079971]
[1728830668255,3.02,62539.0,62538.0,0.19191294]
[1728830669452,3.02,62539.0,62538.0,0.19291294]
[1728830669453,3.021,62539.0,62538.0,0.19291294]
[1728830669863,3.022,62539.0,62538.0,0.19491294]
[1728830670965,3.022,62539.0,62538.0,1.370484]
[1728830671166,3.022,62539.0,62538.0,0.67463294]
[1728830671467,3.022,62539.0,62538.0,0.29076262]
[1728830671468,3.10197,62539.0,62538.0,0.29076262]
[1728830672564,3.10197,62539.0,62538.0,0.19491294]
[1728830672761,3.10197,62539.0,62538.0,0.18991123]
[1728830673162,3.10197,62539.0,62538.0,0.10994023]
[1728830673359,3.21197,62539.0,62538.0,0.11494172]
[1728830673667,3.21197,62539.0,62538.0,0.003]
[1728830674075,3.10197,62539.0,62538.0,0.003]
[1728830674673,3.21197,62539.0,62538.0,0.003]
[1728830675464,3.21197,62539.0,62538.0,0.06690188]
[1728830675966,3.21197,62539.0,62538.0,0.10959948]
[1728830677674,3.24070709,62539.0,62538.0,0.10959948]
[1728830680172,3.24070709,62539.0,62538.0,0.10958782]
[1728830682972,3.24070709,62539.0,62538.0,0.003]
[1728830685476,3.24070709,62539.0,62538.0,0.06690884]
[1728830685681,3.13070709,62539.0,62538.0,0.003]
[1728830685982,3.13070709,62539.0,62538.0,0.06692023]
[1728830686277,3.13070709,62539.0,62538.0,0.003]
[1728830687068,3.13070709,62539.0,62538.0,0.0669246]
[1728830687273,3.13070709,62539.0,62538.0,0.003]
[1728830690285,3.24070709,62539.0,62538.0,0.003]
[1728830690578,3.13070709,62539.0,62538.0,0.003]
[1728830690977,3.24070709,62539.0,62538.0,0.10959073]
[1728830695578,3.24070709,62539.0,62538.0,0.11059073]
[1728830695780,3.23970709,62539.0,62538.0,0.10859073]
[1728830695981,3.24070709,62539.0,62538.0,0.11059073]
[1728830697791,3.24070709,62539.0,62538.0,0.19053161]
[1728830698188,3.24070709,62539.0,62538.0,0.004]
[1728830700382,3.24070709,62539.0,62538.0,0.19065027]
[1728830700982,3.24070709,62539.0,62538.0,0.08394088]
[1728830701179,3.24070709,62539.0,62538.0,0.004]
[1728830702482,0.079971,62538.0,62535.0,0.0008]
[1728830702680,0.079971,62538.0,62523.0,0.07999]
[1728830702681,0.079981,62530.0,62523.0,0.07999]
[1728830702885,0.4708,62530.0,62529.0,0.10697652]
[1728830703187,0.551181,62530.0,62529.0,0.10697652]
[1728830703578,0.079984,62528.0,62527.0,0.0302]
[1728830703781,0.189984,62528.0,62527.0,0.13599299]
[1728830704077,0.190384,62528.0,62527.0,0.13599299]
[1728830704285,0.1104,62528.0,62520.0,0.0037]
[1728830704487,0.1104,62528.0,62516.0,0.0304]
[1728830704488,0.079995,62519.0,62518.0,0.079996]
[1728830704786,0.1104,62519.0,62518.0,0.23698982]
[1728830704988,0.1104,62519.0,62518.0,0.31698582]
[1728830705794,0.1114,62519.0,62518.0,0.31698582]
[1728830705974,0.1114,62519.0,62518.0,0.22334616]
[1728830706179,0.1114,62519.0,62518.0,0.22284406]
[1728830707077,0.192395,62519.0,62518.0,0.22284406]
[1728830710789,0.192395,62519.0,62518.0,0.11749899]
[1728830710987,0.302395,62519.0,62518.0,0.00500299]
[1728830711287,0.079996,62518.0,62517.0,0.0314]
[1728830711590,0.080396,62518.0,62517.0,0.0314]
[1728830711780,0.080396,62518.0,62517.0,0.09523129]
[1728830712288,0.441196,62518.0,62517.0,0.0952342]
[1728830712588,0.7243,62518.0,62512.0,0.04786384]
[1728830712891,0.080013,62505.0,62502.0,0.080017]
[1728830713094,0.0004,62505.0,62504.0,0.11191768]
[1728830713391,0.1104,62505.0,62504.0,0.19193168]
[1728830714593,0.11,62508.0,62504.0,0.19193168]
[1728830714889,0.11,62508.0,62507.0,0.440811]
[1728830715189,0.11,62508.0,62507.0,0.5453247]
[1728830715381,0.11,62508.0,62507.0,0.55032834]
[1728830715788,0.11,62508.0,62507.0,0.18952834]
[1728830716193,0.111,62508.0,62507.0,0.18952834]
[1728830716993,0.001,62508.0,62507.0,0.44581464]
[1728830717194,0.0004,62513.0,62507.0,0.44581464]
[1728830717195,0.0004,62513.0,62512.0,0.080004]
[1728830717396,0.1104,62513.0,62512.0,0.08500764]
[1728830718387,0.1114,62513.0,62512.0,0.08500764]
[1728830718997,0.1124,62513.0,62512.0,0.08700764]
[1728830719694,0.1124,62513.0,62512.0,0.082004]
[1728830720490,0.302403,62513.0,62512.0,0.001]
[1728830720696,0.192403,62513.0,62512.0,0.001]
[1728830720996,0.302403,62513.0,62512.0,0.001]
[1728830721190,0.301403,62513.0,62512.0,0.002]
[1728830721494,0.302403,62513.0,62512.0,0.003]
[1728830722098,0.33054425,62513.0,62512.0,0.003]
[1728830722490,0.92046425,62513.0,62504.0,0.00279983]
[1728830722690,0.92046425,62513.0,62500.0,10.10104]
[1728830722691,0.300018,62501.0,62500.0,10.10104]
[1728830722889,0.080418,62501.0,62500.0,10.1]
[1728830723089,0.190418,62501.0,62500.0,10.1]
[1728830723286,0.190418,62501.0,62500.0,10.18002]
[1728830723491,0.190418,62501.0,62500.0,10.1]
[1728830723698,0.299418,62501.0,62500.0,10.1]
[1728830724091,0.189418,62501.0,62500.0,10.1]
[1728830724587,0.191418,62501.0,62500.0,10.101]
[1728830725199,0.190418,62501.0,62500.0,10.101]
[1728830725392,0.191418,62501.0,62500.0,10.101]
[1728830725885,0.251418,62501.0,62500.0,10.101]
[1728830726086,0.251418,62501.0,62500.0,10.1314]
[1728830726499,0.1724,62501.0,62500.0,10.1314]
[1728830726800,0.1724,62501.0,62500.0,10.21142]
[1728830727601,0.252418,62501.0,62500.0,10.21142]
[1728830727803,0.252418,62501.0,62500.0,10.1314]
[1728830728905,0.082418,62501.0,62500.0,10.1314]
[1728830729204,0.02946402,62504.0,62500.0,10.1314]
[1728830729205,0.0004,62505.0,62500.0,10.49760433]
[1728830729407,0.0004,62505.0,62504.0,0.080014]
[1728830730294,0.0004,62505.0,62504.0,0.250014]
[1728830730493,0.0004,62505.0,62504.0,0.08501815]
[1728830730893,0.1704,62505.0,62504.0,0.08501815]
[1728830731096,0.0004,62505.0,62504.0,0.08501815]
[1728830731398,0.3608,62511.0,62510.0,0.080007]
[1728830731991,0.00239987,62517.0,62510.0,0.080007]
[1728830731992,0.00239987,62517.0,62512.0,0.080004]
[1728830732198,0.3612,62518.0,62517.0,0.079998]
[1728830732503,0.3612,62518.0,62517.0,0.445801]
[1728830732504,0.0004,62518.0,62517.0,0.445801]
[1728830732706,0.0004,62518.0,62517.0,1.525681]
[1728830733395,0.261085,62527.0,62518.0,0.079996]
[1728830733596,0.1811,62527.0,62526.0,0.079986]
[1728830733799,0.17,62527.0,62526.0,0.440786]
[1728830734196,0.1704,62530.0,62527.0,0.079985]
[1728830734399,0.1704,62530.0,62527.0,0.559785]
[1728830735105,0.1704,62530.0,62527.0,0.079985]
[1728830735301,0.1704,62530.0,62527.0,0.111085]
[1728830735908,0.0014,62528.0,62527.0,0.111085]
[1728830736998,0.0014,62528.0,62527.0,0.0311]
[1728830736999,0.082384,62528.0,62527.0,0.0311]
[1728830738810,0.082384,62528.0,62524.0,0.079988]
[1728830738811,0.0024,62528.0,62524.0,0.079988]
[1728830739104,0.17,62527.0,62524.0,0.079988]
[1728830739309,0.0004,62525.0,62524.0,0.079988]
[1728830740409,0.080388,62525.0,62524.0,0.079988]
[1728830741301,0.081388,62525.0,62524.0,0.079988]
[1728830741813,0.0014,62525.0,62524.0,0.079988]
[1728830742311,0.0024,62525.0,62524.0,0.079988]
[1728830742811,0.0024,62525.0,62524.0,0.0849905]
[1728830743808,0.0024,62525.0,62524.0,0.08499042]
[1728830744006,0.1724,62525.0,62524.0,0.08499042]
[1728830744709,0.0024,62525.0,62524.0,0.08499042]
[1728830746206,0.1724,62525.0,62524.0,0.09299388]
[1728830746608,0.252388,62525.0,62524.0,0.00500242]
[1728830748310,0.252388,62525.0,62523.0,0.3608]
[1728830748311,0.1724,62525.0,62523.0,0.3608]
[1728830748617,0.252388,62525.0,62524.0,0.079989]
[1728830749611,0.079989,62524.0,62523.0,0.3608]
[1728830749807,0.079989,62524.0,62523.0,0.36580257]
[1728830750003,0.080389,62524.0,62523.0,0.00500257]
[1728830751011,0.080389,62524.0,62522.0,0.07999]
[1728830751213,0.1704,62523.0,62522.0,0.07999]
[1728830751907,0.0004,62523.0,62522.0,0.0849925]
[1728830752617,0.0014,62523.0,62522.0,0.0849925]
[1728830753711,0.0014,62523.0,62522.0,0.08499236]
[1728830755413,0.0024,62523.0,62522.0,0.44579236]
[1728830760410,0.0024,62523.0,62522.0,0.45379606]
[1728830760907,0.0024,62523.0,62522.0,0.44579233]
[1728830761114,0.0024,62523.0,62522.0,0.45379614]
[1728830762423,0.25239,62523.0,62522.0,0.45379614]
[1728830762726,0.25239,62523.0,62522.0,0.44579233]
[1728830763621,0.25239,62523.0,62522.0,0.44579257]
[1728830764123,0.25239,62523.0,62522.0,0.44079]
[1728830766519,0.25239,62523.0,62522.0,0.66967297]
[1728830767419,0.25239,62523.0,62522.0,0.54520924]
[1728830767620,0.25239,62523.0,62522.0,0.66976182]
[1728830770520,0.25239,62523.0,62522.0,0.46521924]
[1728830770724,0.079993,62521.0,62520.0,0.08038841]
[1728830770918,0.079993,62521.0,62520.0,0.0004]
[1728830771229,0.080393,62521.0,62520.0,0.0004]
[1728830771828,0.080393,62521.0,62518.0,0.0004]
[1728830771829,0.079995,62519.0,62518.0,0.0004]
[1728830772025,0.080002,62514.0,62513.0,0.07998841]
[1728830772222,0.080002,62514.0,62504.0,0.3612]
[1728830772223,0.080003,62513.0,62506.0,0.07998841]
[1728830772525,0.080003,62513.0,62504.0,0.00144]
[1728830772526,0.080013,62505.0,62504.0,0.0004]
[1728830772736,0.080413,62505.0,62504.0,0.0004]
[1728830772925,0.080413,62505.0,62504.0,0.06431284]
[1728830773123,0.080413,62505.0,62504.0,0.0004]
[1728830773324,0.080413,62505.0,62500.0,10.10144]
[1728830773325,0.080017,62502.0,62500.0,10.10144]
[1728830773527,0.281018,62501.0,62500.0,10.1004]
[1728830774832,0.31020468,62501.0,62500.0,10.1004]
[1728830775325,1.42340468,62501.0,62500.0,9.7704]
[1728830775531,1.42440468,62501.0,62500.0,9.7704]
[1728830775832,1.42540468,62501.0,62500.0,9.7704]
[1728830776529,1.45740468,62501.0,62500.0,9.7704]
[1728830777826,1.45740468,62501.0,62500.0,9.7665]
[1728830778428,1.45740468,62501.0,62500.0,9.4365]
[1728830778633,1.45740468,62501.0,62500.0,9.323186]
[1728830778634,1.62740468,62501.0,62500.0,9.323186]
[1728830778822,1.45740468,62501.0,62500.0,9.323186]
[1728830779024,1.45740468,62501.0,62500.0,9.125236]
[1728830779025,1.62740468,62501.0,62500.0,9.125236]
[1728830779331,1.62740468,62501.0,62500.0,8.12066528]
[1728830779631,1.62740468,62501.0,62500.0,8.00891469]
[1728830779825,1.62740468,62501.0,62500.0,7.98467469]
[1728830780028,1.62740468,62501.0,62500.0,7.79735869]
[1728830780244,1.62740468,62501.0,62500.0,7.66828375]
[1728830780433,1.62740468,62501.0,62500.0,7.65228375]
[1728830780825,1.62740468,62501.0,62500.0,7.64278375]
[1728830781233,1.45740468,62501.0,62500.0,7.57278375]
[1728830781535,0.85740468,62501.0,62500.0,7.57278375]
[1728830783725,1.45740468,62501.0,62500.0,7.31278375]
[1728830784135,1.45740468,62501.0,62500.0,7.24278375]
[1728830785831,0.85740468,62501.0,62500.0,7.24278375]
[1728830786231,1.45740468,62501.0,62500.0,7.24278375]
[1728830786531,0.85740468,62501.0,62500.0,7.24278375]
[1728830786734,1.45740468,62501.0,62500.0,6.98278375]
[1728830787132,1.45740468,62501.0,62500.0,6.89898375]
[1728830787339,0.85740468,62501.0,62500.0,6.89898375]
[1728830787636,1.45740468,62501.0,62500.0,6.88298375]
[1728830788238,0.85740468,62501.0,62500.0,6.86698375]
[1728830788432,2.17900468,62501.0,62500.0,6.86698375]
[1728830788632,2.17900468,62501.0,62500.0,6.85138375]
[1728830788935,2.17900468,62501.0,62500.0,6.83538375]
[1728830789136,1.57900468,62501.0,62500.0,6.83538375]
[1728830789330,1.57900468,62501.0,62500.0,6.82768375]
[1728830789532,1.57900468,62501.0,62500.0,6.56768375]
[1728830789733,2.17900468,62501.0,62500.0,6.55168375]
[1728830790039,4.59900468,62501.0,62500.0,6.55168375]
[1728830790436,5.19900468,62501.0,62500.0,6.55168375]
[1728830790835,5.19900468,62501.0,62500.0,6.53568375]
[1728830791034,5.19900468,62501.0,62500.0,6.52008375]
[1728830792242,5.19900468,62501.0,62500.0,6.43723475]
[1728830793040,5.19900468,62501.0,62500.0,6.19638975]
[1728830793433,5.19900468,62501.0,62500.0,6.19588975]
[1728830793839,5.19900468,62501.0,62500.0,6.17988975]
[1728830794237,5.19900468,62501.0,62500.0,6.16028975]
[1728830794444,5.19900468,62501.0,62500.0,6.14828975]
[1728830794835,5.19900468,62501.0,62500.0,6.13228975]
[1728830795335,5.19900468,62501.0,62500.0,6.12458975]
[1728830795535,5.19900468,62501.0,62500.0,6.10898975]
[1728830795835,5.19900468,62501.0,62500.0,6.09298975]
[1728830796639,5.19900468,62501.0,62500.0,6.01246475]
[1728830797136,5.19900468,62501.0,62500.0,6.00856475]
[1728830797538,5.16580468,62501.0,62500.0,6.00856475]
[1728830797741,4.53520468,62501.0,62500.0,5.99256475]
[1728830799334,4.50320468,62501.0,62500.0,5.99256475]
[1728830800645,5.10320468,62501.0,62500.0,5.99256475]
[1728830800942,4.50320468,62501.0,62500.0,5.98046475]
[1728830801547,5.10320468,62501.0,62500.0,5.98046475]
[1728830802038,5.10320468,62501.0,62500.0,5.96446475]
[1728830802230,5.10320468,62501.0,62500.0,5.38401704]
[1728830802433,5.31257251,62501.0,62500.0,5.13723204]
[1728830802631,5.31257251,62501.0,62500.0,5.01886404]
[1728830802843,5.31257251,62501.0,62500.0,4.79159704]
[1728830803238,5.43824736,62501.0,62500.0,4.20596848]
[1728830803437,5.43824736,62501.0,62500.0,3.90451048]
[1728830803438,5.14146753,62501.0,62500.0,3.90451048]
[1728830803633,5.10320468,62501.0,62500.0,3.90451048]
[1728830803836,5.10320468,62501.0,62500.0,3.88851048]
[1728830804039,5.10320468,62501.0,62500.0,3.67996748]
[1728830804242,5.10320468,62501.0,62500.0,3.44547578]
[1728830804543,5.10320468,62501.0,62500.0,2.95308603]
[1728830804743,5.48200622,62501.0,62500.0,1.98560032]
[1728830804949,5.35522639,62501.0,62500.0,1.40157732]
[1728830805139,5.35522639,62501.0,62500.0,0.57479717]
[1728830805448,5.35522639,62501.0,62490.0,0.0037]
[1728830805449,0.080031,62491.0,62490.0,0.0037]
[1728830805649,0.080032,62490.0,62489.0,0.002]
[1728830805941,0.560512,62490.0,62489.0,0.002]
[1728830806139,1.160512,62490.0,62489.0,0.002]
[1728830806847,1.160512,62490.0,62466.0,0.5308]
[1728830806848,0.080052,62475.0,62463.0,0.08368841]
[1728830807035,0.080072,62459.0,62458.0,0.0332]
[1728830807235,0.3612,62459.0,62458.0,0.0332]
[1728830807435,0.0004,62459.0,62458.0,0.2032]
[1728830807636,0.17,62465.0,62458.0,0.2032]
[1728830807846,0.17,62462.0,62458.0,0.113672]
[1728830808044,0.17,62462.0,62459.0,0.080071]
[1728830808249,0.17,62462.0,62458.0,0.0336]
[1728830808453,0.38926571,62466.0,62458.0,0.0336]
[1728830808454,0.1704,62459.0,62458.0,0.0336]
[1728830808943,0.0004,62459.0,62458.0,0.0336]
[1728830809147,0.1704,62459.0,62458.0,0.0336]
[1728830809551,0.1714,62459.0,62458.0,0.0297]
[1728830809942,0.1724,62459.0,62458.0,0.0297]
[1728830812448,0.20157815,62459.0,62458.0,0.0297]
[1728830813560,0.20157815,62459.0,62458.0,0.0004]
[1728830813848,0.28165015,62459.0,62458.0,0.0004]
[1728830814841,1.36197015,62459.0,62458.0,0.0004]
[1728830815248,1.37011707,62459.0,62458.0,0.0004]
[1728830815750,1.36911707,62459.0,62458.0,0.0004]
[1728830815957,1.37011707,62459.0,62458.0,0.0004]
[1728830816552,1.36911707,62459.0,62458.0,0.0004]
[1728830816740,1.37011707,62459.0,62458.0,0.0004]
[1728830816946,1.37011707,62459.0,62447.0,0.0303]
[1728830816947,0.080082,62451.0,62447.0,0.0303]
[1728830817147,0.250482,62451.0,62450.0,0.0046]
[1728830817353,0.420482,62451.0,62447.0,0.0303]
[1728830817555,0.250486,62448.0,62447.0,0.01238249]
[1728830818045,0.1704,62448.0,62447.0,0.01238249]
[1728830818452,0.0004,62448.0,62447.0,0.01238249]
[1728830819451,0.02869608,62448.0,62447.0,0.01238249]
[1728830819654,0.19869608,62448.0,62447.0,0.01238249]
[1728830819959,0.19969608,62448.0,62447.0,0.01238249]
[1728830820258,0.20069608,62448.0,62447.0,0.01238249]
[1728830820855,0.0024,62448.0,62447.0,0.09246949]
[1728830821157,0.3632,62448.0,62447.0,0.01238249]
[1728830821459,0.082486,62448.0,62447.0,0.01238249]
[1728830822261,0.081486,62448.0,62447.0,0.01238249]
[1728830822558,0.082486,62448.0,62447.0,0.01238249]
[1728830822759,0.081486,62448.0,62447.0,0.01238249]
[1728830822959,0.082486,62448.0,62447.0,0.01238249]
[1728830823456,0.0024,62448.0,62447.0,0.01238249]
[1728830823650,0.0014,62448.0,62447.0,0.01238249]
[1728830823850,0.0024,62448.0,62447.0,0.01238249]
[1728830824749,0.3632,62448.0,62447.0,0.01238249]
[1728830825148,0.443286,62448.0,62447.0,0.01238249]
[1728830825357,0.082486,62448.0,62447.0,0.01238249]
[1728830825661,0.443286,62448.0,62447.0,0.01238249]
[1728830829656,0.442286,62448.0,62447.0,0.01238249]
[1728830829859,0.08009,62445.0,62444.0,0.002]
[1728830830159,0.25049,62445.0,62444.0,0.002]
[1728830831164,0.25149,62445.0,62444.0,0.002]
[1728830831667,0.25249,62445.0,62444.0,0.002]
[1728830833964,0.25249,62445.0,62444.0,0.04985408]
[1728830834168,0.25249,62445.0,62444.0,0.04985662]
[1728830834363,0.25249,62445.0,62444.0,0.002]
[1728830835168,0.0024,62445.0,62444.0,0.002]
[1728830836264,0.0024,62445.0,62444.0,0.082091]
[1728830836467,0.0014,62445.0,62444.0,0.26924126]
[1728830836668,0.0024,62445.0,62444.0,0.16207941]
[1728830837366,0.1724,62445.0,62444.0,0.18921671]
[1728830838066,0.1724,62445.0,62444.0,0.08198841]
[1728830838264,0.25249,62445.0,62444.0,0.1892382]
[1728830838969,0.1724,62445.0,62444.0,0.2693292]
[1728830839364,0.0024,62445.0,62444.0,1.26978079]
[1728830839766,3.0212,62448.0,62447.0,0.080087]
[1728830839959,3.0204,62448.0,62447.0,0.71813679]
[1728830840163,3.0204,62448.0,62447.0,1.62853679]
[1728830840478,3.0204,62448.0,62447.0,1.75611867]
[1728830840769,2.97231671,62448.0,62447.0,1.75611867]
[1728830840972,2.97231671,62448.0,62447.0,1.27611867]
[1728830841178,2.91821957,62448.0,62447.0,2.0381122]
[1728830841383,2.91821957,62448.0,62447.0,1.92651867]
[1728830842071,1.69821957,62448.0,62447.0,1.92651867]
[1728830842265,1.69821957,62448.0,62447.0,2.20594142]
[1728830842465,1.69821957,62448.0,62447.0,2.41536248]
[1728830842661,1.6180924,62448.0,62447.0,2.38383172]
[1728830842868,1.6180924,62448.0,62447.0,2.38883961]
[1728830843070,1.6180924,62448.0,62447.0,1.84017229]
[1728830843279,1.6180924,62448.0,62447.0,2.23949349]
[1728830843985,1.6180924,62448.0,62447.0,2.07345576]
[1728830844279,1.6180924,62448.0,62447.0,2.2013535]
[1728830845073,1.6180924,62448.0,62447.0,2.07345576]
[1728830845267,1.6180924,62448.0,62447.0,2.24345576]
[1728830845470,1.5314344,62448.0,62447.0,2.3713535]
[1728830845677,1.3469424,62448.0,62447.0,2.3713535]
[1728830845975,1.2392794,62448.0,62447.0,2.3713535]
[1728830846167,1.2392794,62448.0,62447.0,2.24345576]
[1728830846369,1.1482644,62448.0,62447.0,2.24345576]
[1728830846769,1.0483594,62448.0,62447.0,2.24345576]
[1728830846970,1.0483594,62448.0,62447.0,2.20126076]
[1728830847171,1.0483594,62448.0,62447.0,2.07345576]
[1728830847979,1.0483594,62448.0,62447.0,2.07345555]
[1728830848766,1.0483594,62448.0,62447.0,1.92764321]
[1728830849166,1.0483594,62448.0,62447.0,1.15764321]
[1728830849473,1.0483594,62448.0,62447.0,0.76705482]
[1728830849474,1.1284454,62448.0,62447.0,0.76705482]
[1728830849677,1.1284454,62448.0,62447.0,0.18584857]
[1728830849866,1.1284454,62448.0,62447.0,0.080487]
[1728830850681,1.1284454,62448.0,62447.0,0.0004]
[1728830851173,1.1284454,62448.0,62447.0,0.080487]
[1728830851574,0.082086,62448.0,62447.0,0.080487]
[1728830852369,0.082086,62448.0,62447.0,0.0004]
[1728830853582,0.002,62448.0,62447.0,0.080487]
[1728830853768,0.001,62448.0,62447.0,0.20043681]
[1728830854086,0.0004,62451.0,62450.0,0.080084]
[1728830854274,0.0004,62451.0,62450.0,0.72264853]
[1728830854782,0.0004,62451.0,62450.0,0.73066179]
[1728830854978,0.0004,62451.0,62450.0,0.71763966]
[1728830855171,0.0014,62451.0,62450.0,0.74466122]
[1728830856274,0.081482,62451.0,62450.0,0.22959681]
[1728830856473,0.082482,62451.0,62450.0,0.13475566]
[1728830856679,0.082482,62451.0,62450.0,0.21461083]
[1728830856871,0.082482,62451.0,62450.0,0.028]
[1728830857075,0.113882,62451.0,62450.0,0.028]
[1728830858683,0.113882,62451.0,62450.0,0.21476477]
[1728830858684,0.082482,62451.0,62450.0,0.21476477]
[1728830858883,0.082482,62451.0,62450.0,0.13489842]
[1728830859086,0.082482,62451.0,62450.0,0.49569842]
[1728830859981,0.082482,62451.0,62450.0,0.57578242]
[1728830860884,0.252482,62451.0,62450.0,0.57578242]
[1728830861378,0.252482,62451.0,62450.0,0.49569842]
[1728830861885,0.082482,62451.0,62450.0,0.57578242]
[1728830863293,0.422482,62451.0,62449.0,0.07990269]
[1728830863478,0.422482,62451.0,62438.0,0.0037]
[1728830863479,1.4228,62451.0,62438.0,0.0037]
[1728830863785,0.61129,62445.0,62437.0,0.00240212]
[1728830864683,0.63985734,62445.0,62444.0,0.0164]
[1728830865685,0.080105,62433.0,62432.0,0.3645]
[1728830865993,0.080105,62433.0,62432.0,0.3658099]
[1728830866282,0.080505,62433.0,62432.0,0.3658099]
[1728830867073,0.081505,62433.0,62432.0,0.3658099]
[1728830867277,0.082505,62433.0,62432.0,0.3658099]
[1728830871580,0.082505,62433.0,62432.0,0.3608]
[1728830871975,0.082505,62433.0,62432.0,0.36581005]
[1728830872187,0.082505,62433.0,62432.0,0.3608]
[1728830872887,0.082505,62433.0,62426.0,0.1439653]
[1728830872888,0.0024,62433.0,62426.0,0.1439653]
[1728830873191,0.0024,62433.0,62427.0,0.00501011]
[1728830873192,0.17,62431.0,62427.0,0.00501011]